[Event "*** Titled Tuesday 3|2 Blitz"]
[Site "Chess.com"]
[Date "2017.03.07"]
[Round "6"]
[White "rithwik2002"]
[Black "WanderingPuppet"]
[Result "0-1"]
[WhiteElo "1797"]
[BlackElo "2340"]
[TimeControl "180+2"]
[EndTime "14:27:43 PST"]
[Termination "WanderingPuppet won by resignation"]

1. d4 {[%clk 0:03:02]} 1... Nf6 {[%clk 0:02:57.9]} 2. Bf4 {[%clk 0:03:00.5]}
2... g6 {[%clk 0:02:51]} 3. Nc3 {[%clk 0:02:58.5]} 3... Bg7 {[%clk 0:02:50.2]}
4. e4 {[%clk 0:02:59.3]} 4... O-O {[%clk 0:02:51.5]} 5. Nf3 {[%clk 0:02:48.3]}
5... c5 {[%clk 0:02:50.3]} 6. dxc5 {[%clk 0:02:18.8]} 6... Qa5 {[%clk
0:02:50.6]} 7. Qd2 {[%clk 0:02:15.1]} 7... Qxc5 {[%clk 0:02:49.9]} 8. Be2 {[%clk
0:01:52.1]} 8... d6 {[%clk 0:02:44.3]} 9. O-O {[%clk 0:01:46.4]} 9... Nc6 {[%clk
0:02:42.2]} 10. Be3 {[%clk 0:00:50.4]} 10... Qa5 {[%clk 0:02:30.9]} 11. a3
{[%clk 0:00:50.4]} 11... Bg4 {[%clk 0:02:28.5]} 12. h3 {[%clk 0:00:47.3]} 12...
Bxf3 {[%clk 0:02:26.6]} 13. Bxf3 {[%clk 0:00:49.2]} 13... Nd7 {[%clk 0:02:26.1]}
14. b4 {[%clk 0:00:43.9]} 14... Qd8 {[%clk 0:02:25.1]} 15. Rad1 {[%clk
0:00:34.1]} 15... Rc8 {[%clk 0:02:25.9]} 16. Be2 {[%clk 0:00:21]} 16... Nxb4
{[%clk 0:02:16.3]} 17. axb4 {[%clk 0:00:19.5]} 17... Bxc3 {[%clk 0:02:16.5]} 18.
Qd3 {[%clk 0:00:16.8]} 18... Bg7 {[%clk 0:01:55.1]} 19. Bxa7 {[%clk 0:00:15.3]}
19... Ne5 {[%clk 0:01:48.7]} 20. Qe3 {[%clk 0:00:15.2]} 20... Rxc2 {[%clk
0:01:46.7]} 21. Bd4 {[%clk 0:00:13.4]} 21... Qc8 {[%clk 0:01:31.7]} 22. f4
{[%clk 0:00:11.8]} 22... Nc6 {[%clk 0:01:11.4]} 23. Bxg7 {[%clk 0:00:10.3]}
23... Kxg7 {[%clk 0:01:13.3]} 24. b5 {[%clk 0:00:10.9]} 24... Nd8 {[%clk
0:01:09.6]} 25. Bd3 {[%clk 0:00:06.6]} 25... Qc5 {[%clk 0:01:02.6]} 26. Qxc5
{[%clk 0:00:05]} 26... Rxc5 {[%clk 0:01:04.5]} 27. Kf2 {[%clk 0:00:04.4]} 27...
Ne6 {[%clk 0:01:05.4]} 28. Ke3 {[%clk 0:00:05.2]} 28... b6 {[%clk 0:01:02.9]}
29. Rc1 {[%clk 0:00:06.2]} 29... Rfc8 {[%clk 0:01:02.2]} 30. Ra1 {[%clk
0:00:06.7]} 30... Rc3 {[%clk 0:01:01.2]} 31. g3 {[%clk 0:00:07.1]} 31... Nc5
{[%clk 0:01:00.9]} 32. Rfd1 {[%clk 0:00:08.5]} 32... Rc7 {[%clk 0:00:54.5]} 33.
Rac1 {[%clk 0:00:08.8]} 33... Nb3 {[%clk 0:00:38.8]} 34. Rxc3 {[%clk 0:00:07.5]}
34... Rxc3 {[%clk 0:00:40.7]} 35. Rb1 {[%clk 0:00:07.5]} 35... Nc5 {[%clk
0:00:40.7]} 36. Rd1 {[%clk 0:00:08.9]} 36... Rb3 {[%clk 0:00:35.6]} 37. Kd4
{[%clk 0:00:09]} 37... Nxd3 {[%clk 0:00:29.4]} 38. Rxd3 {[%clk 0:00:10.9]} 38...
Rxb5 {[%clk 0:00:30]} 39. Ra3 {[%clk 0:00:10.7]} 39... Kf6 {[%clk 0:00:26.7]}
40. g4 {[%clk 0:00:10.8]} 40... h6 {[%clk 0:00:26.9]} 41. h4 {[%clk 0:00:11.7]}
41... e5+ {[%clk 0:00:24.3]} 42. fxe5+ {[%clk 0:00:12.2]} 42... dxe5+ {[%clk
0:00:26.2]} 43. Kc4 {[%clk 0:00:11.4]} 43... Rb1 {[%clk 0:00:24.3]} 44. Rf3+
{[%clk 0:00:11.2]} 44... Ke6 {[%clk 0:00:24.5]} 45. g5 {[%clk 0:00:10.5]} 45...
hxg5 {[%clk 0:00:24.3]} 46. hxg5 {[%clk 0:00:12.4]} 46... b5+ {[%clk 0:00:24]}
47. Kc3 {[%clk 0:00:11.6]} 47... Re1 {[%clk 0:00:19.5]} 48. Kd3 {[%clk 0:00:11]}
48... Rg1 {[%clk 0:00:19.1]} 49. Rf6+ {[%clk 0:00:10.8]} 49... Ke7 {[%clk
0:00:20.4]} 50. Rb6 {[%clk 0:00:12.7]} 50... b4 {[%clk 0:00:17.5]} 51. Rxb4
{[%clk 0:00:12.9]} 51... Rxg5 {[%clk 0:00:17.4]} 52. Ke3 {[%clk 0:00:12.6]}
52... Rg3+ {[%clk 0:00:17.3]} 53. Kf2 {[%clk 0:00:13.6]} 53... Rc3 {[%clk
0:00:17.7]} 54. Rb7+ {[%clk 0:00:13.9]} 54... Kf6 {[%clk 0:00:18.7]} 55. Rb6+
{[%clk 0:00:14.1]} 55... Kg5 {[%clk 0:00:19]} 56. Rb7 {[%clk 0:00:14.2]} 56...
f6 {[%clk 0:00:19.5]} 57. Rf7 {[%clk 0:00:13.5]} 57... Rd3 {[%clk 0:00:19.3]}
58. Kg2 {[%clk 0:00:12.8]} 58... f5 {[%clk 0:00:18.7]} 59. Re7 {[%clk
0:00:12.3]} 59... Kf4 {[%clk 0:00:16.8]} 60. Rg7 {[%clk 0:00:11.3]} 60... Rg3+
{[%clk 0:00:14.6]} 61. Kf2 {[%clk 0:00:11.8]} 61... Rf3+ {[%clk 0:00:13.1]} 62.
Kg2 {[%clk 0:00:12]} 62... Re3 {[%clk 0:00:12.3]} 63. exf5 {[%clk 0:00:09.7]}
63... gxf5 {[%clk 0:00:13.1]} 64. Rh7 {[%clk 0:00:10.4]} 64... e4 {[%clk
0:00:12.3]} 65. Rh4+ {[%clk 0:00:10.6]} 65... Ke5 {[%clk 0:00:13.4]} 66. Kf2
{[%clk 0:00:12.1]} 66... Ra3 {[%clk 0:00:13.2]} 67. Ke2 {[%clk 0:00:14]} 67...
Kd4 {[%clk 0:00:13]} 68. Rh8 {[%clk 0:00:14.1]} 68... Ra2+ {[%clk 0:00:13.7]}
69. Kd1 {[%clk 0:00:12.5]} 69... Ke3 {[%clk 0:00:13]} 70. Rh3+ {[%clk
0:00:12.7]} 70... Kd4 {[%clk 0:00:14.3]} 71. Rh8 {[%clk 0:00:12.6]} 71... f4
{[%clk 0:00:15.3]} 72. Rd8+ {[%clk 0:00:12.6]} 72... Ke3 {[%clk 0:00:16.2]} 73.
Rh8 {[%clk 0:00:12.1]} 73... f3 {[%clk 0:00:16.8]} 74. Re8 {[%clk 0:00:04.9]}
74... f2 {[%clk 0:00:14.8]} 75. Rf8 {[%clk 0:00:04.1]} 75... Ra1+ {[%clk
0:00:14.3]} 0-1

[Event "*** Titled Tuesday 3|2 Blitz"]
[Site "Chess.com"]
[Date "2017.03.07"]
[Round "6"]
[White "SwiftyMcBishop"]
[Black "eldur16"]
[Result "1-0"]
[WhiteElo "2213"]
[BlackElo "2322"]
[TimeControl "180+2"]
[EndTime "14:27:44 PST"]
[Termination "SwiftyMcBishop won by resignation"]

1. e4 {[%clk 0:02:59.5]} 1... e5 {[%clk 0:02:59.9]} 2. Nf3 {[%clk 0:03:00.4]}
2... Nc6 {[%clk 0:03:00.4]} 3. d4 {[%clk 0:03:00.4]} 3... exd4 {[%clk
0:03:00.8]} 4. Nxd4 {[%clk 0:02:59.2]} 4... Nf6 {[%clk 0:03:01.2]} 5. Nc3 {[%clk
0:02:58.8]} 5... Bb4 {[%clk 0:03:01.5]} 6. Nxc6 {[%clk 0:02:56.5]} 6... bxc6
{[%clk 0:03:01.8]} 7. Bd3 {[%clk 0:02:58]} 7... O-O {[%clk 0:03:01.3]} 8. O-O
{[%clk 0:02:58.5]} 8... d5 {[%clk 0:03:02.3]} 9. exd5 {[%clk 0:02:55.8]} 9...
cxd5 {[%clk 0:03:03.4]} 10. Bg5 {[%clk 0:02:53.4]} 10... c6 {[%clk 0:03:04.3]}
11. Qf3 {[%clk 0:02:51.4]} 11... Bd6 {[%clk 0:03:03.3]} 12. h3 {[%clk
0:02:50.2]} 12... Be6 {[%clk 0:03:02.6]} 13. Rfe1 {[%clk 0:02:40.9]} 13... Rb8
{[%clk 0:03:02.5]} 14. Rab1 {[%clk 0:02:37.2]} 14... Re8 {[%clk 0:02:57.5]} 15.
Ne2 {[%clk 0:02:32.1]} 15... c5 {[%clk 0:02:52.9]} 16. Nf4 {[%clk 0:02:27.1]}
16... h6 {[%clk 0:02:51.4]} 17. Nxe6 {[%clk 0:02:24.3]} 17... fxe6 {[%clk
0:02:48.5]} 18. Bh4 {[%clk 0:02:21.3]} 18... Rb4 {[%clk 0:02:44.2]} 19. Bg3
{[%clk 0:02:14.2]} 19... Bxg3 {[%clk 0:02:32.1]} 20. Qxg3 {[%clk 0:02:10.7]}
20... Qb8 {[%clk 0:02:32.7]} 21. Qxb8 {[%clk 0:02:07.7]} 21... Rbxb8 {[%clk
0:02:23.8]} 22. c4 {[%clk 0:02:05.3]} 22... Kf7 {[%clk 0:02:20.2]} 23. f4 {[%clk
0:02:03.4]} 23... Rb4 {[%clk 0:02:17.3]} 24. b3 {[%clk 0:01:56.2]} 24... a5
{[%clk 0:02:14.5]} 25. f5 {[%clk 0:01:49.6]} 25... d4 {[%clk 0:02:00.9]} 26. Re5
{[%clk 0:01:46.6]} 26... Nd7 {[%clk 0:01:50.5]} 27. fxe6+ {[%clk 0:01:45.7]}
27... Rxe6 {[%clk 0:01:50.3]} 28. Rd5 {[%clk 0:01:46.4]} 28... Ne5 {[%clk
0:01:32.9]} 29. Bf5 {[%clk 0:01:33]} 29... Re7 {[%clk 0:01:33.2]} 30. Rxc5
{[%clk 0:01:33.2]} 30... a4 {[%clk 0:01:31.6]} 31. bxa4 {[%clk 0:01:28.5]} 31...
Rxa4 {[%clk 0:01:25.5]} 32. Rf1 {[%clk 0:01:25.3]} 32... Ra6 {[%clk 0:01:13.5]}
33. Be4+ {[%clk 0:01:17.9]} 33... Rf6 {[%clk 0:01:12.2]} 34. Rxf6+ {[%clk
0:01:12.4]} 34... Kxf6 {[%clk 0:01:11.3]} 35. Rd5 {[%clk 0:01:10.4]} 35... Ra7
{[%clk 0:00:59.9]} 36. Rxd4 {[%clk 0:01:07.3]} 36... Rxa2 {[%clk 0:01:00.7]} 37.
Bd5 {[%clk 0:00:58.8]} 37... g5 {[%clk 0:00:58.6]} 38. Kf1 {[%clk 0:00:53.1]}
38... Rc2 {[%clk 0:00:58.8]} 39. Ke1 {[%clk 0:00:50.5]} 39... h5 {[%clk
0:00:57.1]} 40. Kd1 {[%clk 0:00:48]} 40... Ra2 {[%clk 0:00:54]} 41. Kc1 {[%clk
0:00:48.8]} 41... g4 {[%clk 0:00:43.6]} 42. hxg4 {[%clk 0:00:34.3]} 42... hxg4
{[%clk 0:00:43.3]} 43. Kb1 {[%clk 0:00:32.6]} 43... Rf2 {[%clk 0:00:27.3]} 44.
c5 {[%clk 0:00:29.6]} 44... Ke7 {[%clk 0:00:12.9]} 45. Re4 {[%clk 0:00:26.9]}
45... Rf5 {[%clk 0:00:13.9]} 46. Kb2 {[%clk 0:00:27.4]} 46... Kd7 {[%clk
0:00:14.7]} 47. Kc3 {[%clk 0:00:26.8]} 47... Kc7 {[%clk 0:00:15.5]} 48. Kd4
{[%clk 0:00:25.1]} 48... Nc6+ {[%clk 0:00:16.5]} 49. Bxc6 {[%clk 0:00:24.6]}
49... Kxc6 {[%clk 0:00:17.3]} 50. Re6+ {[%clk 0:00:22.6]} 50... Kc7 {[%clk
0:00:17.9]} 51. Rg6 {[%clk 0:00:20.2]} 51... Rf4+ {[%clk 0:00:18.6]} 52. Kd5
{[%clk 0:00:19.3]} 52... Rf5+ {[%clk 0:00:19.3]} 53. Kc4 {[%clk 0:00:20.5]}
53... Rf1 {[%clk 0:00:12.6]} 54. Rxg4 {[%clk 0:00:18.9]} 54... Rc1+ {[%clk
0:00:13.4]} 55. Kd5 {[%clk 0:00:19.4]} 55... Rd1+ {[%clk 0:00:14.4]} 56. Rd4
{[%clk 0:00:19.4]} 56... Rg1 {[%clk 0:00:15.3]} 57. g4 {[%clk 0:00:17.9]} 57...
Rg2 {[%clk 0:00:16.4]} 58. Ke6 {[%clk 0:00:17]} 58... Kc6 {[%clk 0:00:17.5]} 59.
Rf4 {[%clk 0:00:14.9]} 59... Kxc5 {[%clk 0:00:17.8]} 60. Kf6 {[%clk 0:00:14.3]}
60... Kd5 {[%clk 0:00:17]} 61. g5 {[%clk 0:00:11.9]} 61... Ra2 {[%clk
0:00:17.2]} 62. g6 {[%clk 0:00:10.6]} 62... Ra6+ {[%clk 0:00:17.7]} 63. Kf5
{[%clk 0:00:09.3]} 63... Ra8 {[%clk 0:00:16.9]} 64. g7 {[%clk 0:00:09.3]} 64...
Kd6 {[%clk 0:00:17.9]} 65. Rg4 {[%clk 0:00:06.8]} 65... Rg8 {[%clk 0:00:17]} 66.
Kf6 {[%clk 0:00:08.3]} 66... Kd7 {[%clk 0:00:18.1]} 67. Kf7 {[%clk 0:00:09.7]}
67... Rxg7+ {[%clk 0:00:18.8]} 68. Kxg7 {[%clk 0:00:10.4]} 68... Ke6 {[%clk
0:00:19.8]} 69. Kg6 {[%clk 0:00:11.7]} 1-0

[Event "*** Titled Tuesday 3|2 Blitz"]
[Site "Chess.com"]
[Date "2017.03.07"]
[Round "6"]
[White "Schemato"]
[Black "JeremDev"]
[Result "0-1"]
[WhiteElo "2267"]
[BlackElo "2232"]
[TimeControl "180+2"]
[EndTime "14:27:49 PST"]
[Termination "JeremDev won on time"]

1. c4 {[%clk 0:03:02]} 1... b5 {[%clk 0:03:00.5]} 2. cxb5 {[%clk 0:03:02.3]}
2... a6 {[%clk 0:03:02.1]} 3. e4 {[%clk 0:03:01.3]} 3... axb5 {[%clk 0:03:01.9]}
4. Bxb5 {[%clk 0:03:00.7]} 4... Bb7 {[%clk 0:02:59.9]} 5. Nc3 {[%clk 0:03:00.6]}
5... e5 {[%clk 0:02:55.5]} 6. Nf3 {[%clk 0:03:00.5]} 6... Bd6 {[%clk 0:02:54.2]}
7. d4 {[%clk 0:02:58.2]} 7... Nc6 {[%clk 0:02:48.9]} 8. Bxc6 {[%clk 0:02:54.8]}
8... Bxc6 {[%clk 0:02:49.7]} 9. dxe5 {[%clk 0:02:54.5]} 9... Bc5 {[%clk
0:02:47.3]} 10. O-O {[%clk 0:02:52.3]} 10... Ne7 {[%clk 0:02:48.4]} 11. Re1
{[%clk 0:02:50.4]} 11... O-O {[%clk 0:02:49.3]} 12. Be3 {[%clk 0:02:50.5]} 12...
Bxe3 {[%clk 0:02:48]} 13. Rxe3 {[%clk 0:02:50.9]} 13... Ng6 {[%clk 0:02:49.9]}
14. Nd5 {[%clk 0:02:47.5]} 14... Re8 {[%clk 0:02:48.6]} 15. Qd4 {[%clk
0:02:47.1]} 15... Ra4 {[%clk 0:02:43]} 16. Qc3 {[%clk 0:02:41.6]} 16... h5
{[%clk 0:02:23.8]} 17. h3 {[%clk 0:02:41.3]} 17... h4 {[%clk 0:02:23.6]} 18. b3
{[%clk 0:02:37.6]} 18... Ra7 {[%clk 0:02:21.7]} 19. a4 {[%clk 0:02:35.8]} 19...
Qb8 {[%clk 0:02:22.6]} 20. a5 {[%clk 0:02:33.5]} 20... Bxd5 {[%clk 0:02:09.1]}
21. exd5 {[%clk 0:02:32.8]} 21... Nf4 {[%clk 0:02:11]} 22. Qc4 {[%clk 0:02:26]}
22... Ng6 {[%clk 0:02:01.3]} 23. a6 {[%clk 0:02:21]} 23... Qb6 {[%clk 0:02:00]}
24. b4 {[%clk 0:02:06.3]} 24... Rb8 {[%clk 0:01:56.6]} 25. Rb3 {[%clk
0:02:03.3]} 25... Qb5 {[%clk 0:01:53.5]} 26. Qc3 {[%clk 0:01:24.7]} 26... Qxd5
{[%clk 0:01:52.2]} 27. Ra5 {[%clk 0:01:14.5]} 27... Qd1+ {[%clk 0:01:46.8]} 28.
Kh2 {[%clk 0:01:15.8]} 28... Rb6 {[%clk 0:01:43.6]} 29. b5 {[%clk 0:01:12.8]}
29... Qd5 {[%clk 0:01:33.5]} 30. Rb4 {[%clk 0:01:04.6]} 30... d6 {[%clk
0:01:21.1]} 31. Rd4 {[%clk 0:01:00.9]} 31... Qe6 {[%clk 0:01:15.4]} 32. exd6
{[%clk 0:01:00.5]} 32... Rxd6 {[%clk 0:01:15.8]} 33. Rxd6 {[%clk 0:01:00.4]}
33... Qxd6+ {[%clk 0:01:12.7]} 34. Kg1 {[%clk 0:00:59.5]} 34... Nf4 {[%clk
0:01:11.9]} 35. Qd2 {[%clk 0:00:52.5]} 35... Qf6 {[%clk 0:00:53.2]} 36. Ra3
{[%clk 0:00:33.5]} 36... Ra8 {[%clk 0:00:46.1]} 37. Kh2 {[%clk 0:00:30]} 37...
Ng6 {[%clk 0:00:30.8]} 38. Rd3 {[%clk 0:00:28.2]} 38... Nf4 {[%clk 0:00:16.9]}
39. Rd4 {[%clk 0:00:27.4]} 39... Ng6 {[%clk 0:00:17.2]} 40. Qg5 {[%clk
0:00:21.5]} 40... Qb6 {[%clk 0:00:10]} 41. Qd5 {[%clk 0:00:20]} 41... Rf8 {[%clk
0:00:06.9]} 42. Nxh4 {[%clk 0:00:19.6]} 42... Nxh4 {[%clk 0:00:07.2]} 43. Rxh4
{[%clk 0:00:20.2]} 43... Rb8 {[%clk 0:00:08.3]} 44. Rb4 {[%clk 0:00:15.2]} 44...
Qa7 {[%clk 0:00:07.2]} 45. Kg1 {[%clk 0:00:10.1]} 45... Qb6 {[%clk 0:00:07.9]}
46. g3 {[%clk 0:00:08.5]} 46... Re8 {[%clk 0:00:08.9]} 47. h4 {[%clk 0:00:08.5]}
47... Re1+ {[%clk 0:00:09.7]} 48. Kg2 {[%clk 0:00:09.3]} 48... Re8 {[%clk
0:00:08.4]} 49. Ra4 {[%clk 0:00:09.8]} 49... Re2 {[%clk 0:00:04.6]} 50. Qd4
{[%clk 0:00:08.9]} 50... Qe6 {[%clk 0:00:03.1]} 51. Rc4 {[%clk 0:00:06]} 51...
Qf5 {[%clk 0:00:03]} 52. Qf4 {[%clk 0:00:05.6]} 52... Qd5+ {[%clk 0:00:03.7]}
53. Kf1 {[%clk 0:00:04.8]} 53... Qd1+ {[%clk 0:00:04.4]} 54. Kg2 {[%clk
0:00:05.7]} 54... Qd5+ {[%clk 0:00:06]} 55. Kh2 {[%clk 0:00:03.5]} 55... Re1
{[%clk 0:00:06.6]} 56. Kh3 {[%clk 0:00:03.6]} 56... Rh1+ {[%clk 0:00:06.6]} 57.
Kg4 {[%clk 0:00:05]} 57... Qe6+ {[%clk 0:00:07.7]} 58. Kf3 {[%clk 0:00:04.8]}
58... Re1 {[%clk 0:00:08.2]} 59. Re4 {[%clk 0:00:05.1]} 59... Qb3+ {[%clk
0:00:08.8]} 60. Re3 {[%clk 0:00:05.8]} 60... Qd5+ {[%clk 0:00:09.6]} 61. Qe4
{[%clk 0:00:06.9]} 61... Qd1+ {[%clk 0:00:09.7]} 62. Kf4 {[%clk 0:00:07.1]}
62... Rf1 {[%clk 0:00:10.4]} 63. Qe8+ {[%clk 0:00:07.7]} 63... Kh7 {[%clk
0:00:11.7]} 64. Qe4+ {[%clk 0:00:08.5]} 64... g6 {[%clk 0:00:12.4]} 65. f3
{[%clk 0:00:09.7]} 65... Qd6+ {[%clk 0:00:12]} 66. Qe5 {[%clk 0:00:09.8]} 66...
Qb4+ {[%clk 0:00:13.2]} 67. Re4 {[%clk 0:00:09.7]} 67... Qd2+ {[%clk 0:00:13.6]}
68. Re3 {[%clk 0:00:07.7]} 68... Qb4+ {[%clk 0:00:13.7]} 69. Qe4 {[%clk
0:00:06.2]} 69... Qd6+ {[%clk 0:00:14.8]} 70. Qe5 {[%clk 0:00:05.4]} 70... Qb4+
{[%clk 0:00:15.9]} 71. Kg5 {[%clk 0:00:03.3]} 71... Rc1 {[%clk 0:00:13.4]} 72.
f4 {[%clk 0:00:02.4]} 72... Rc5 {[%clk 0:00:14.4]} 0-1

[Event "*** Titled Tuesday 3|2 Blitz"]
[Site "Chess.com"]
[Date "2017.03.07"]
[Round "7"]
[White "morphy1984"]
[Black "Buffy7"]
[Result "0-1"]
[WhiteElo "2479"]
[BlackElo "2503"]
[TimeControl "180+2"]
[EndTime "14:31:43 PST"]
[Termination "Buffy7 won by resignation"]

1. e4 {[%clk 0:03:02]} 1... c5 {[%clk 0:03:00.4]} 2. Nf3 {[%clk 0:03:02.2]} 2...
Nc6 {[%clk 0:03:02]} 3. d4 {[%clk 0:03:02.3]} 3... cxd4 {[%clk 0:03:03.9]} 4.
Nxd4 {[%clk 0:03:03.2]} 4... Nf6 {[%clk 0:03:05.6]} 5. Nc3 {[%clk 0:03:03.5]}
5... e5 {[%clk 0:03:07.3]} 6. Ndb5 {[%clk 0:03:03.8]} 6... d6 {[%clk 0:03:08.9]}
7. Bg5 {[%clk 0:03:03.9]} 7... a6 {[%clk 0:03:10.5]} 8. Na3 {[%clk 0:03:04.5]}
8... Be6 {[%clk 0:03:12.2]} 9. Nc4 {[%clk 0:03:03]} 9... Rb8 {[%clk 0:03:12.5]}
10. Nd5 {[%clk 0:02:51.9]} 10... Bxd5 {[%clk 0:03:11.6]} 11. Bxf6 {[%clk
0:02:50.1]} 11... Qxf6 {[%clk 0:03:08.8]} 12. Qxd5 {[%clk 0:02:50.2]} 12... Nb4
{[%clk 0:03:09.4]} 13. Qd2 {[%clk 0:02:40.5]} 13... d5 {[%clk 0:03:10.9]} 14.
exd5 {[%clk 0:02:37.2]} 14... Rd8 {[%clk 0:03:12.5]} 15. Ne3 {[%clk 0:02:33.8]}
15... Bc5 {[%clk 0:03:11]} 16. Bc4 {[%clk 0:02:24.6]} 16... Bxe3 {[%clk
0:03:00.5]} 17. fxe3 {[%clk 0:02:25.1]} 17... Qh4+ {[%clk 0:03:01.6]} 0-1

[Event "*** Titled Tuesday 3|2 Blitz"]
[Site "Chess.com"]
[Date "2017.03.07"]
[Round "7"]
[White "Tirantes"]
[Black "JaimeSantosLatasa"]
[Result "1-0"]
[WhiteElo "2274"]
[BlackElo "2559"]
[TimeControl "180+2"]
[EndTime "14:33:37 PST"]
[Termination "Tirantes won by resignation"]

1. e4 {[%clk 0:03:02]} 1... e6 {[%clk 0:03:00.6]} 2. d4 {[%clk 0:03:01.9]} 2...
d5 {[%clk 0:03:01.6]} 3. Nd2 {[%clk 0:03:02.8]} 3... Nc6 {[%clk 0:03:01.8]} 4.
Ngf3 {[%clk 0:03:02.4]} 4... Nf6 {[%clk 0:03:03]} 5. e5 {[%clk 0:03:03.1]} 5...
Nd7 {[%clk 0:03:04.5]} 6. Bd3 {[%clk 0:03:03.5]} 6... Nb4 {[%clk 0:03:02.6]} 7.
Be2 {[%clk 0:03:04.3]} 7... c5 {[%clk 0:03:03.7]} 8. c3 {[%clk 0:03:05.1]} 8...
Nc6 {[%clk 0:03:04.5]} 9. O-O {[%clk 0:03:05]} 9... Be7 {[%clk 0:03:05.7]} 10.
a3 {[%clk 0:03:00.5]} 10... a5 {[%clk 0:03:03.7]} 11. b3 {[%clk 0:03:00.4]}
11... g5 {[%clk 0:02:51.1]} 12. Bb2 {[%clk 0:02:55.6]} 12... g4 {[%clk
0:02:45.9]} 13. Ne1 {[%clk 0:02:56]} 13... h5 {[%clk 0:02:47.2]} 14. Nc2 {[%clk
0:02:47.5]} 14... Qb6 {[%clk 0:02:38.3]} 15. Rb1 {[%clk 0:02:36.9]} 15... a4
{[%clk 0:02:30.6]} 16. b4 {[%clk 0:02:24.1]} 16... c4 {[%clk 0:02:27.8]} 17. Ne3
{[%clk 0:02:22.3]} 17... Bg5 {[%clk 0:02:22.8]} 18. Ndxc4 {[%clk 0:02:21.7]}
18... dxc4 {[%clk 0:02:23.4]} 19. Nxc4 {[%clk 0:02:22.3]} 19... Qc7 {[%clk
0:02:24.7]} 20. Nd6+ {[%clk 0:02:18.2]} 20... Kf8 {[%clk 0:02:25.2]} 21. f4
{[%clk 0:02:15.3]} 21... gxf3 {[%clk 0:02:23.3]} 22. Bxf3 {[%clk 0:02:01.2]}
22... Ndxe5 {[%clk 0:02:20.5]} 23. dxe5 {[%clk 0:01:57.6]} 23... Nxe5 {[%clk
0:02:21.2]} 24. c4 {[%clk 0:01:51.9]} 24... Bf4 {[%clk 0:02:20.5]} 25. c5 {[%clk
0:01:33.9]} 25... Rg8 {[%clk 0:02:16.1]} 26. Bxh5 {[%clk 0:01:28.2]} 26... Be3+
{[%clk 0:02:17.2]} 27. Kh1 {[%clk 0:01:28]} 1-0

[Event "*** Titled Tuesday 3|2 Blitz"]
[Site "Chess.com"]
[Date "2017.03.07"]
[Round "7"]
[White "GMCanty"]
[Black "eldur16"]
[Result "0-1"]
[WhiteElo "2338"]
[BlackElo "2333"]
[TimeControl "180+2"]
[EndTime "14:33:56 PST"]
[Termination "eldur16 won by resignation"]

1. e4 {[%clk 0:03:02]} 1... c5 {[%clk 0:03:00.8]} 2. c3 {[%clk 0:03:00.8]} 2...
d5 {[%clk 0:03:01.1]} 3. exd5 {[%clk 0:03:01.6]} 3... Qxd5 {[%clk 0:03:02.2]} 4.
d4 {[%clk 0:03:03.2]} 4... e6 {[%clk 0:03:03.3]} 5. Nf3 {[%clk 0:03:03.2]} 5...
Nf6 {[%clk 0:03:04.3]} 6. Be2 {[%clk 0:03:03.9]} 6... Nc6 {[%clk 0:03:05.3]} 7.
O-O {[%clk 0:03:05.5]} 7... Be7 {[%clk 0:03:06.4]} 8. Be3 {[%clk 0:03:06.1]}
8... cxd4 {[%clk 0:03:03.4]} 9. Nxd4 {[%clk 0:03:08]} 9... Nxd4 {[%clk
0:03:03.7]} 10. Bxd4 {[%clk 0:03:09.9]} 10... O-O {[%clk 0:03:04.6]} 11. Bf3
{[%clk 0:03:11.3]} 11... Qa5 {[%clk 0:03:02.3]} 12. Nd2 {[%clk 0:03:11.9]} 12...
Qc7 {[%clk 0:03:01]} 13. Qe2 {[%clk 0:03:03.5]} 13... Bd6 {[%clk 0:02:57]} 14.
g3 {[%clk 0:03:00]} 14... e5 {[%clk 0:02:56.4]} 15. Be3 {[%clk 0:02:56.7]} 15...
Bh3 {[%clk 0:02:56.3]} 16. Rfd1 {[%clk 0:02:53.6]} 16... Rfe8 {[%clk 0:02:48.3]}
17. Bg5 {[%clk 0:02:48.6]} 17... e4 {[%clk 0:02:36.6]} 18. Bh1 {[%clk
0:02:39.6]} 18... Bg4 {[%clk 0:02:36.1]} 19. Qe3 {[%clk 0:02:28]} 19... Bc5
{[%clk 0:02:21.8]} 20. Qf4 {[%clk 0:02:22.5]} 20... Qxf4 {[%clk 0:02:22.1]} 21.
Bxf4 {[%clk 0:02:24.4]} 21... Bxd1 {[%clk 0:02:22.3]} 22. Rxd1 {[%clk
0:02:26.3]} 22... Rad8 {[%clk 0:02:21.2]} 23. Rf1 {[%clk 0:02:11.8]} 23... e3
{[%clk 0:02:18.2]} 24. Nb3 {[%clk 0:02:13.3]} 24... exf2+ {[%clk 0:02:07]} 25.
Kg2 {[%clk 0:02:14]} 25... Bb6 {[%clk 0:02:07.8]} 26. Nd4 {[%clk 0:02:10.8]}
26... Ne4 {[%clk 0:02:06.5]} 27. Kh3 {[%clk 0:02:06.3]} 27... Bxd4 {[%clk
0:02:00.3]} 28. cxd4 {[%clk 0:02:08.2]} 28... Rxd4 {[%clk 0:02:00.6]} 29. Bxe4
{[%clk 0:02:01.9]} 29... Rdxe4 {[%clk 0:02:00.8]} 30. Rxf2 {[%clk 0:02:03.8]}
30... Re2 {[%clk 0:02:01.8]} 31. Rf3 {[%clk 0:01:59.7]} 31... Rxb2 {[%clk
0:02:01.8]} 32. a3 {[%clk 0:02:00.3]} 32... h6 {[%clk 0:01:58.9]} 0-1

[Event "*** Titled Tuesday 3|2 Blitz"]
[Site "Chess.com"]
[Date "2017.03.07"]
[Round "7"]
[White "DeviatkinAndrey"]
[Black "Cecile_Haussernot"]
[Result "1-0"]
[WhiteElo "2538"]
[BlackElo "2270"]
[TimeControl "180+2"]
[EndTime "14:34:10 PST"]
[Termination "DeviatkinAndrey won by resignation"]

1. e4 {[%clk 0:03:01.9]} 1... c5 {[%clk 0:03:00.7]} 2. c3 {[%clk 0:03:02.4]}
2... e6 {[%clk 0:03:00.7]} 3. d4 {[%clk 0:03:03.1]} 3... d5 {[%clk 0:03:01.7]}
4. exd5 {[%clk 0:03:04.2]} 4... exd5 {[%clk 0:03:02.9]} 5. Nf3 {[%clk
0:03:05.5]} 5... Nc6 {[%clk 0:03:03.3]} 6. Bb5 {[%clk 0:03:05.8]} 6... Bd7
{[%clk 0:02:59.8]} 7. O-O {[%clk 0:03:05.4]} 7... Nf6 {[%clk 0:02:59.8]} 8. Bg5
{[%clk 0:03:02.6]} 8... Be7 {[%clk 0:03:00.2]} 9. dxc5 {[%clk 0:03:03]} 9...
Bxc5 {[%clk 0:02:52.7]} 10. Bxf6 {[%clk 0:03:02.6]} 10... Qxf6 {[%clk
0:02:53.3]} 11. Qxd5 {[%clk 0:03:03.4]} 11... b6 {[%clk 0:02:13.4]} 12. Nbd2
{[%clk 0:02:37.4]} 12... O-O-O {[%clk 0:02:12.7]} 13. Ne4 {[%clk 0:02:37.5]}
13... Qe7 {[%clk 0:02:05.8]} 14. Bxc6 {[%clk 0:02:37.1]} 14... Be6 {[%clk
0:02:00.5]} 15. Qe5 {[%clk 0:02:28.5]} 15... f6 {[%clk 0:01:55.8]} 16. Qf4
{[%clk 0:02:25.1]} 16... f5 {[%clk 0:01:53.1]} 17. Nxc5 {[%clk 0:02:21.5]} 17...
Qxc5 {[%clk 0:01:53.2]} 18. Nd4 {[%clk 0:02:22.4]} 18... Rd6 {[%clk 0:01:46.2]}
19. Rfe1 {[%clk 0:02:20]} 19... Bf7 {[%clk 0:01:31.6]} 20. Qxf5+ {[%clk
0:02:11]} 20... Qxf5 {[%clk 0:01:30.9]} 21. Nxf5 {[%clk 0:02:12.2]} 21... Rxc6
{[%clk 0:01:32.2]} 22. Ne7+ {[%clk 0:02:13.5]} 22... Kc7 {[%clk 0:01:33.3]} 23.
Nxc6 {[%clk 0:02:14.7]} 23... Kxc6 {[%clk 0:01:34.9]} 24. Re7 {[%clk 0:02:15.8]}
24... Bd5 {[%clk 0:01:25.8]} 25. Rxa7 {[%clk 0:02:02.5]} 1-0